bitfinex/quotes_BTCUSD_20250314
["timestamp","ask_amount","ask_price","bid_price","bid_amount"]
[1741925225586,0.255763,82108.0,82103.0,0.39335745]
[1741925226211,0.3001691,82107.0,82103.0,0.14976145]
[1741925226408,0.3011691,82107.0,82103.0,0.14976145]
[1741925227028,0.3021691,82107.0,82103.0,0.14976145]
[1741925227799,0.0021691,82107.0,82104.0,0.380572]
[1741925227977,0.0021691,82107.0,82106.0,0.255766]
[1741925228544,0.0021691,82107.0,82106.0,0.26900865]
[1741925229176,0.0021691,82107.0,82106.0,0.01324265]
[1741925229345,0.0021691,82107.0,82106.0,0.0258324]
[1741925230373,0.0001691,82107.0,82106.0,0.0258324]
[1741925230768,0.0001691,82107.0,82106.0,0.0268324]
[1741925231296,0.0001691,82107.0,82106.0,0.0258324]
[1741925231471,0.0001691,82107.0,82106.0,0.02705022]
[1741925231901,0.0001691,82107.0,82106.0,0.02805022]
[1741925232254,0.0001691,82107.0,82106.0,0.10925022]
[1741925232468,0.0001691,82107.0,82106.0,0.15825022]
[1741925232869,0.0001691,82107.0,82106.0,0.29469022]
[1741925233109,0.0001691,82107.0,82106.0,0.2934724]
[1741925233683,0.0001691,82107.0,82106.0,0.2944724]
[1741925234057,0.0001691,82107.0,82106.0,0.33100747]
[1741925234389,0.0001691,82107.0,82106.0,0.34554832]
[1741925235008,0.0001691,82107.0,82106.0,0.34654832]
[1741925235210,0.0001691,82107.0,82106.0,0.34454832]
[1741925235451,0.0011691,82107.0,82106.0,0.34554832]
[1741925236432,0.0011691,82107.0,82106.0,1.18474916]
[1741925236705,0.0011691,82107.0,82106.0,1.18574916]
[1741925237302,0.0011691,82107.0,82106.0,1.18474916]
[1741925237523,0.0001691,82107.0,82106.0,1.18374916]
[1741925237717,0.0021691,82107.0,82106.0,1.18574916]
[1741925238054,0.0011691,82107.0,82106.0,1.18474916]
[1741925238256,0.0001691,82107.0,82106.0,1.14821409]
[1741925238474,0.0011691,82107.0,82106.0,1.14821409]
[1741925238637,0.0021691,82107.0,82106.0,1.14921409]
[1741925239434,0.0021691,82107.0,82106.0,1.0295131]
[1741925241495,0.0021691,82107.0,82106.0,1.0294731]
[1741925243272,0.0021691,82107.0,82106.0,0.8930731]
[1741925243474,0.0021691,82107.0,82106.0,1.01493225]
[1741925249879,0.0021691,82107.0,82106.0,1.14917409]
[1741925250422,0.0021691,82107.0,82106.0,1.0294731]
[1741925253613,0.0021691,82107.0,82106.0,1.01493225]
[1741925254104,0.0021691,82107.0,82106.0,1.05146732]
[1741925256218,0.0021691,82107.0,82106.0,1.05618732]
[1741925256821,0.0021691,82107.0,82106.0,1.07445485]
[1741925257010,0.0021691,82107.0,82106.0,0.93805485]
[1741925257240,0.0021691,82107.0,82106.0,1.07445485]
[1741925260954,0.0021691,82107.0,82106.0,0.93805485]
[1741925261156,0.0021691,82107.0,82106.0,1.07445485]
[1741925262975,0.0021691,82107.0,82106.0,0.93805485]
[1741925263191,0.0021691,82107.0,82106.0,1.07445485]
[1741925266430,0.0021691,82107.0,82106.0,1.05618732]
[1741925267475,0.0021691,82107.0,82106.0,1.07072817]
[1741925267679,0.0021691,82107.0,82106.0,2.57072817]
[1741925267859,0.0021691,82107.0,82106.0,2.60884183]
[1741925268462,0.0021691,82107.0,82106.0,1.07072817]
[1741925269786,0.0021691,82107.0,82106.0,1.10884484]
[1741925270170,0.0021691,82107.0,82106.0,1.07072817]
[1741925271108,0.0021691,82107.0,82106.0,2.60884475]
[1741925271421,0.0021691,82107.0,82106.0,1.06774084]
[1741925272855,0.0021691,82107.0,82106.0,1.10585906]
[1741925273949,0.09153412,82133.0,82127.0,0.243522]
[1741925274113,0.09153412,82133.0,82128.0,0.1364]
[1741925274312,0.09153412,82133.0,82128.0,0.14667467]
[1741925275177,0.10798662,82133.0,82128.0,0.14667467]
[1741925275747,0.10798662,82133.0,82128.0,0.14767467]
[1741925275954,0.10798662,82133.0,82128.0,0.39119467]
[1741925276209,0.0164525,82133.0,82130.0,0.243513]
[1741925276554,0.0001692,82135.0,82132.0,0.243508]
[1741925276758,0.0001692,82135.0,82133.0,0.01027467]
[1741925277159,0.0001692,82135.0,82131.0,0.255686]
[1741925277438,0.0001692,82135.0,82132.0,0.25378267]
[1741925277789,0.0001692,82135.0,82132.0,0.25419342]
[1741925278010,0.01636386,82135.0,82132.0,0.25519342]
[1741925278203,0.01636386,82135.0,82133.0,0.25568]
[1741925278586,0.01636386,82135.0,82134.0,0.01027467]
[1741925278772,0.01636386,82135.0,82133.0,0.25568]
[1741925278973,0.01636386,82135.0,82134.0,0.01027467]
[1741925279172,0.01636386,82135.0,82133.0,0.25568]
[1741925279376,0.01636386,82135.0,82134.0,0.01027467]
[1741925279578,0.01636386,82135.0,82133.0,0.001]
[1741925279776,0.01636386,82135.0,82134.0,0.01027467]
[1741925279992,0.01636386,82135.0,82132.0,0.00041075]
[1741925280198,0.01636386,82135.0,82134.0,0.001]
[1741925280626,0.01636386,82135.0,82134.0,0.01125339]
[1741925280829,0.01636386,82135.0,82134.0,0.001]
[1741925281027,0.01636386,82135.0,82134.0,0.01125339]
[1741925281231,0.01636386,82135.0,82134.0,0.001]
[1741925281777,0.01636386,82135.0,82134.0,0.01125339]
[1741925281914,0.01636386,82135.0,82134.0,0.001]
[1741925282139,0.01636386,82135.0,82134.0,0.01125339]
[1741925282352,0.02853886,82135.0,82134.0,0.001]
[1741925282543,0.02853886,82135.0,82134.0,0.01125339]
[1741925282750,0.02853886,82135.0,82134.0,0.001]
[1741925282967,0.02853886,82135.0,82134.0,0.01225339]
[1741925283856,0.0001692,82135.0,82134.0,0.01225339]
[1741925284351,0.0162778,82135.0,82134.0,0.01225339]
[1741925284551,0.0001692,82135.0,82134.0,0.01225339]
[1741925285219,0.0001692,82135.0,82134.0,0.26793239]
[1741925286353,0.2558162,82145.0,82139.0,0.012174]
[1741925286354,0.23530423,82145.0,82139.0,0.012174]
[1741925286497,0.23530423,82145.0,82140.0,0.243484]
[1741925286696,0.243458,82150.0,82140.0,0.243484]
[1741925286697,0.243465,82148.0,82143.0,0.243475]
[1741925286998,0.25966718,82148.0,82144.0,0.14657123]
[1741925287238,0.243465,82148.0,82144.0,0.14657123]
[1741925288017,0.244465,82148.0,82144.0,0.14657123]
[1741925288285,0.256638,82148.0,82144.0,0.14657123]
[1741925288400,0.255638,82148.0,82144.0,0.14657123]
[1741925288605,0.256638,82148.0,82144.0,0.14657123]
[1741925289685,0.243468,82147.0,82144.0,0.14657123]
[1741925290304,0.01867007,82148.0,82145.0,0.243471]
[1741925290567,0.002,82148.0,82146.0,0.012173]
[1741925290744,0.001,82148.0,82146.0,0.26576347]
[1741925291086,0.001,82148.0,82147.0,0.012173]
[1741925291290,0.3,82152.0,82147.0,0.255637]
[1741925291499,0.3166711,82152.0,82147.0,0.26575992]
[1741925292039,0.001,82148.0,82147.0,0.26575992]
[1741925293336,0.001,82148.0,82147.0,0.02229592]
[1741925293906,0.5621231,82152.0,82147.0,0.02229592]
[1741925294228,0.5601231,82152.0,82147.0,0.02229592]
[1741925294481,0.002,82148.0,82147.0,0.02229592]
[1741925295135,0.001,82148.0,82147.0,0.02229592]
[1741925295346,0.3,82157.0,82147.0,0.02229592]
[1741925295347,0.002,82152.0,82151.0,0.243453]
[1741925295549,0.002,82152.0,82150.0,0.012172]
[1741925295696,0.002,82152.0,82151.0,0.01011605]
[1741925296287,0.002,82152.0,82151.0,0.02228805]
[1741925296491,0.004,82152.0,82151.0,0.02228805]
[1741925296786,0.0001692,82158.0,82155.0,0.012172]
[1741925296986,0.0001692,82158.0,82156.0,0.25353198]
[1741925297240,0.01677673,82158.0,82156.0,0.25253198]
[1741925297593,0.01677673,82158.0,82156.0,0.01009298]
[1741925297998,0.01677673,82158.0,82153.0,0.012172]
[1741925298201,0.01677673,82158.0,82154.0,0.01007121]
[1741925298393,0.26121173,82158.0,82154.0,0.01007121]
[1741925298612,0.01877673,82158.0,82154.0,0.01007121]
[1741925299712,0.01877673,82158.0,82155.0,0.012172]
[1741925299914,0.01777673,82158.0,82155.0,0.012172]
[1741925300137,0.01877673,82158.0,82155.0,0.012172]
[1741925300345,0.01777673,82158.0,82156.0,0.01007121]
[1741925301062,0.01777673,82158.0,82157.0,0.01007121]
[1741925301269,0.01877673,82158.0,82157.0,0.01007121]
[1741925301463,0.01677673,82158.0,82153.0,0.255617]
[1741925301622,0.01777673,82158.0,82157.0,0.01007121]
[1741925301824,0.22836943,82160.0,82153.0,0.255617]
[1741925302023,0.255603,82159.0,82157.0,0.01007121]
[1741925302228,0.255603,82159.0,82154.0,0.255614]
[1741925302229,0.21619843,82160.0,82158.0,0.13632]
[1741925302492,0.0001691,82161.0,82159.0,0.243428]
[1741925302785,0.0123401,82161.0,82158.0,0.14539121]
[1741925302976,0.0123401,82161.0,82158.0,0.13532]
[1741925303188,0.0123401,82161.0,82159.0,0.01007121]
[1741925303363,0.001,82160.0,82159.0,0.01007121]
[1741925303566,0.256598,82160.0,82159.0,0.01007121]
[1741925303892,0.256598,82160.0,82159.0,0.00907121]
[1741925304271,0.255598,82160.0,82159.0,0.00907121]
[1741925304612,0.256598,82160.0,82159.0,0.00907121]
[1741925304859,0.257598,82160.0,82159.0,0.00907121]
[1741925308641,0.257767,82160.0,82159.0,0.00907121]
[1741925309270,0.002169,82160.0,82159.0,0.00907121]
[1741925309832,0.002169,82160.0,82159.0,0.09814221]
[1741925310371,0.002169,82160.0,82159.0,0.09935923]
[1741925310555,0.001169,82160.0,82159.0,0.09935923]
[1741925310755,0.000169,82160.0,82159.0,0.09935923]
[1741925310988,0.001169,82160.0,82159.0,0.09935923]
[1741925311195,0.002169,82160.0,82159.0,0.09935923]
[1741925311396,0.001169,82160.0,82159.0,0.09935923]
[1741925312173,0.01539659,82163.0,82162.0,0.255592]
[1741925312395,0.0001691,82164.0,82162.0,0.26540454]
[1741925312628,0.0001691,82164.0,82162.0,0.26440454]
[1741925313026,0.0001691,82164.0,82162.0,0.26340454]
[1741925313696,0.0011691,82164.0,82162.0,0.26340454]
[1741925313896,0.0021691,82164.0,82162.0,0.26340454]
[1741925314220,0.00130557,82164.0,82162.0,0.26340454]
[1741925314987,0.00130557,82164.0,82163.0,0.01217]
[1741925315464,0.00130557,82164.0,82163.0,0.0219533]
[1741925315866,0.001,82164.0,82163.0,0.0219533]
[1741925316179,0.002,82164.0,82163.0,0.0219533]
[1741925316460,0.001,82164.0,82163.0,0.0219533]
[1741925316672,0.002,82164.0,82163.0,0.0219533]
[1741925317241,0.002,82164.0,82163.0,0.06957026]
[1741925317615,0.002,82164.0,82163.0,0.0683533]
[1741925317977,0.002,82164.0,82163.0,0.06957019]
[1741925318566,0.002,82164.0,82163.0,0.0683533]
[1741925318885,0.001,82164.0,82163.0,0.0683533]
[1741925319092,0.001,82164.0,82163.0,0.09267693]
[1741925319769,0.002,82164.0,82163.0,0.09267693]
[1741925320172,0.002169,82164.0,82163.0,0.09267693]
[1741925321189,0.002169,82164.0,82163.0,0.09389384]
[1741925322449,0.002169,82164.0,82163.0,0.09267693]
[1741925328879,0.002169,82164.0,82163.0,0.09389384]
[1741925330708,0.002169,82164.0,82163.0,0.09267693]
[1741925332718,0.002169,82164.0,82163.0,0.09301493]
[1741925335297,0.002169,82164.0,82163.0,0.22929493]
[1741925335632,0.000169,82164.0,82163.0,0.22929493]
[1741925335837,0.002169,82164.0,82163.0,0.22929493]
[1741925349062,0.333454,82164.0,82163.0,0.0101213]
[1741925349651,0.333454,82164.0,82163.0,0.000338]
[1741925352322,0.72339893,82164.0,82163.0,0.000338]
[1741925354069,0.633454,82164.0,82163.0,0.000338]
[1741925355778,0.632454,82164.0,82163.0,0.000338]
[1741925356094,0.633454,82164.0,82163.0,0.000338]
[1741925357283,0.556754,82164.0,82163.0,0.000338]
[1741925357533,0.555754,82164.0,82163.0,0.000338]
[1741925358304,0.557754,82164.0,82163.0,0.000338]
[1741925358863,0.002169,82164.0,82163.0,0.000338]
[1741925359111,0.002169,82164.0,82163.0,0.09744921]
[1741925359893,0.00082611,82164.0,82163.0,0.09744921]
[1741925360358,0.00182611,82164.0,82163.0,0.00807921]
[1741925360517,0.01399611,82164.0,82163.0,0.00807921]
[1741925360718,0.01399611,82164.0,82163.0,0.14435921]
[1741925361096,0.01399611,82164.0,82163.0,0.136618]
[1741925361529,0.00182611,82164.0,82163.0,0.136618]
[1741925361980,0.00182611,82164.0,82163.0,0.14430018]
[1741925368035,0.00199521,82164.0,82163.0,0.14430018]
[1741925370180,0.00199521,82164.0,82163.0,0.38771818]
[1741925370369,0.00199521,82164.0,82163.0,0.39988818]
[1741925372756,0.01217,82169.0,82164.0,0.243413]
[1741925373143,0.01217,82169.0,82165.0,0.00755478]
[1741925373565,0.01217,82168.0,82165.0,0.00755478]
[1741925374975,0.243408,82167.0,82165.0,0.00755478]
[1741925375183,0.255578,82167.0,82165.0,0.00755478]
[1741925375380,0.255578,82167.0,82163.0,0.136618]
[1741925375580,0.255578,82167.0,82166.0,0.00752433]
[1741925375813,0.255578,82167.0,82163.0,0.136618]
[1741925375988,0.255578,82167.0,82166.0,0.00752154]
[1741925376191,0.255578,82167.0,82163.0,0.136618]
[1741925376415,0.255578,82167.0,82166.0,0.00752154]
[1741925376612,0.255578,82167.0,82163.0,0.136618]
[1741925376809,0.255578,82167.0,82166.0,0.00752154]
[1741925377012,0.255578,82167.0,82163.0,0.136618]
[1741925377253,0.256578,82167.0,82166.0,0.00752154]
[1741925377699,0.01317,82167.0,82163.0,0.136618]
[1741925377901,0.001,82167.0,82166.0,0.00752154]
[1741925378159,0.001,82167.0,82165.0,0.24341]
[1741925378346,0.002,82167.0,82166.0,0.00752154]
[1741925378900,0.001,82167.0,82166.0,0.00752154]
[1741925379126,0.255568,82170.0,82166.0,0.00752154]
[1741925379334,0.001,82167.0,82166.0,0.00752154]
[1741925379737,0.001,82167.0,82163.0,0.392203]
[1741925379930,0.001,82167.0,82166.0,0.00749836]
[1741925380193,0.002,82167.0,82163.0,0.148788]
[1741925380358,0.002,82167.0,82166.0,0.00749278]
[1741925380591,0.001,82167.0,82163.0,0.148788]
[1741925380889,0.002,82167.0,82163.0,0.148788]
[1741925381091,0.002,82167.0,82164.0,0.26307778]
[1741925381326,0.001,82167.0,82164.0,0.01966278]
[1741925381702,0.001,82167.0,82165.0,0.255579]
[1741925382114,0.0001691,82169.0,82165.0,0.255579]
[1741925382321,0.0001691,82169.0,82166.0,0.00749278]
[1741925382722,0.001,82167.0,82166.0,0.26306978]
[1741925382921,0.0001691,82169.0,82168.0,0.255573]
[1741925383140,0.0001691,82169.0,82166.0,0.26306978]
[1741925383326,0.0021691,82169.0,82166.0,0.255577]
[1741925383486,0.0001691,82169.0,82167.0,0.26206578]
[1741925383921,0.0021691,82169.0,82167.0,0.26206578]
[1741925384248,0.0041691,82169.0,82167.0,0.26206578]
[1741925384456,0.0041691,82169.0,82167.0,0.01966278]
[1741925384625,0.0021691,82169.0,82167.0,0.01966278]
[1741925384831,0.0021691,82169.0,82167.0,0.00749278]
[1741925386039,0.0041691,82169.0,82167.0,0.00749278]
[1741925386290,0.01217,82168.0,82167.0,0.00749278]
[1741925386683,0.01217,82165.0,82163.0,0.136618]
[1741925387609,0.243415,82164.0,82163.0,0.136618]
[1741925387861,0.01217,82165.0,82163.0,0.136618]
[1741925388009,0.255584,82165.0,82163.0,0.136618]
[1741925388398,0.01317,82165.0,82163.0,0.136618]
[1741925388812,0.256584,82165.0,82163.0,0.136618]
[1741925389355,0.257584,82165.0,82163.0,0.136618]
[1741925389610,0.01417,82165.0,82163.0,0.136618]
[1741925389782,0.01417,82165.0,82164.0,0.0074718]
[1741925390688,0.001,82165.0,82164.0,0.0074718]
[1741925390846,0.01217,82167.0,82163.0,0.136618]
[1741925391026,0.002,82165.0,82164.0,0.0074718]
[1741925391751,0.001,82165.0,82164.0,0.0074718]
[1741925392863,0.255575,82168.0,82164.0,0.0074718]
[1741925393260,0.2434,82169.0,82164.0,0.0074718]
[1741925393440,0.243408,82167.0,82164.0,0.0074718]
[1741925393801,0.001,82165.0,82164.0,0.0074718]
[1741925394003,0.244408,82167.0,82164.0,0.0074718]
[1741925394348,0.2445771,82167.0,82164.0,0.0074718]
[1741925394536,0.2445771,82167.0,82165.0,0.13624]
[1741925394726,0.2435771,82167.0,82165.0,0.13624]
[1741925394926,0.2435771,82167.0,82166.0,0.00748526]
[1741925395307,0.2557471,82167.0,82166.0,0.00748526]
[1741925395526,0.01217,82166.0,82165.0,0.13624]
[1741925396740,0.01317,82166.0,82165.0,0.13624]
[1741925398088,0.01417,82166.0,82165.0,0.13624]
[1741925401494,0.38907,82164.0,82163.0,0.000338]
[1741925401695,0.38907,82164.0,82156.0,0.000338]
[1741925401696,0.555607,82157.0,82156.0,0.000338]
[1741925403070,0.556607,82157.0,82156.0,0.000338]
[1741925403306,0.555607,82157.0,82156.0,0.000338]
[1741925403512,0.556607,82157.0,82156.0,0.000338]
[1741925405269,0.55632892,82157.0,82156.0,0.000338]
[1741925405710,0.55532892,82157.0,82156.0,0.000338]
[1741925406086,0.243433,82159.0,82156.0,0.000338]
[1741925406292,0.255607,82157.0,82156.0,0.000338]
[1741925411670,0.555607,82157.0,82156.0,0.000338]
[1741925427684,0.312171,82157.0,82156.0,0.000338]
[1741925428033,0.012171,82157.0,82156.0,0.000338]
[1741925428424,0.3,82160.0,82157.0,0.243434]
[1741925428632,0.012171,82160.0,82157.0,0.0778]
[1741925428830,0.255604,82159.0,82157.0,0.0778]
[1741925429046,0.255604,82159.0,82158.0,0.00645054]
[1741925429517,0.25976708,82161.0,82158.0,0.00645054]
[1741925429722,0.01217,82163.0,82158.0,0.00645054]
[1741925430508,0.012171,82159.0,82158.0,0.00645054]
[1741925431421,0.012171,82159.0,82158.0,0.00745054]
[1741925432319,0.012171,82159.0,82158.0,0.01475594]
[1741925433032,0.012171,82159.0,82158.0,0.002]
[1741925438200,0.312171,82159.0,82158.0,0.002]
[1741925438449,0.0001692,82166.0,82162.0,0.012171]
[1741925438671,0.0001692,82166.0,82163.0,0.1362]
[1741925438845,0.0001692,82166.0,82164.0,0.01217]
[1741925439052,0.0001692,82166.0,82164.0,0.0248387]
[1741925439472,0.0001692,82166.0,82165.0,0.334682]
[1741925440030,0.0001692,82166.0,82165.0,0.3473507]
[1741925440230,0.0011692,82166.0,82165.0,0.3473507]
[1741925440657,0.0001692,82166.0,82165.0,0.3473507]
[1741925444641,0.0001692,82166.0,82165.0,0.3938507]
[1741925446921,0.0001692,82166.0,82165.0,0.40839155]
[1741925447840,0.0001692,82166.0,82165.0,0.41439155]
[1741925448039,0.0001691,82178.0,82166.0,0.02671085]
[1741925448245,0.00021014,82167.0,82166.0,0.15202759]
[1741925448661,0.00021014,82167.0,82166.0,0.16460123]
[1741925448863,8.996e-05,82167.0,82166.0,0.16460123]
[1741925450106,8.996e-05,82167.0,82166.0,0.17660123]
[1741925450507,8.996e-05,82167.0,82166.0,0.17660118]
[1741925450714,8.996e-05,82167.0,82166.0,0.17060118]
[1741925451124,8.996e-05,82167.0,82166.0,0.17660118]
[1741925451328,8.996e-05,82167.0,82166.0,0.59610103]
[1741925451536,8.996e-05,82167.0,82166.0,0.58888434]
[1741925451704,8.996e-05,82167.0,82166.0,0.58288434]
[1741925451913,8.996e-05,82167.0,82166.0,0.58888434]
[1741925452350,8.996e-05,82167.0,82166.0,0.59488434]
[1741925452537,8.996e-05,82167.0,82166.0,0.58888434]
[1741925452945,8.996e-05,82167.0,82166.0,0.59488434]
[1741925455723,8.996e-05,82167.0,82166.0,0.73104434]
[1741925455924,8.996e-05,82167.0,82166.0,0.56817349]
[1741925456121,8.996e-05,82167.0,82166.0,0.95391249]
[1741925456347,8.996e-05,82167.0,82166.0,0.94791249]
[1741925456564,8.996e-05,82167.0,82166.0,0.95391249]
[1741925456765,8.996e-05,82167.0,82166.0,0.95991249]
[1741925456930,8.996e-05,82167.0,82166.0,0.95391249]
[1741925457107,8.996e-05,82167.0,82166.0,0.53341264]
[1741925457312,8.996e-05,82167.0,82166.0,0.52841264]
[1741925457515,8.996e-05,82167.0,82166.0,0.53441264]
[1741925458738,8.996e-05,82167.0,82166.0,0.54041264]
[1741925460958,8.996e-05,82167.0,82166.0,0.55495349]
[1741925462483,0.01915574,82167.0,82166.0,0.55495349]
[1741925465494,0.01915574,82167.0,82166.0,0.55529169]
[1741925467525,8.996e-05,82167.0,82166.0,0.55529169]
[1741925468941,8.996e-05,82167.0,82166.0,0.97479154]
[1741925469123,8.996e-05,82167.0,82166.0,0.96879154]
[1741925469520,8.996e-05,82167.0,82166.0,0.97479154]
[1741925469723,8.996e-05,82167.0,82166.0,0.96879154]
[1741925470842,0.255513,82188.0,82177.0,0.255545]
[1741925471013,0.0002101,82178.0,82177.0,0.34334885]
[1741925471220,0.0002101,82178.0,82177.0,0.39294885]
[1741925471828,0.01927473,82178.0,82177.0,0.39294885]
[1741925473184,0.01927473,82178.0,82177.0,0.40194885]
[1741925476537,0.01927473,82178.0,82177.0,0.39694885]
[1741925476849,0.01927473,82178.0,82177.0,0.42151859]
[1741925477053,0.01927473,82178.0,82177.0,0.42351859]
[1741925477356,0.01927473,82178.0,82177.0,0.42851859]
[1741925477583,0.01927473,82178.0,82177.0,0.44305944]
[1741925480720,0.01927473,82178.0,82177.0,0.86255929]
[1741925482485,0.0002101,82178.0,82177.0,0.86255929]
[1741925489729,0.0002101,82178.0,82177.0,0.98226028]
[1741925490112,1e-07,82178.0,82177.0,0.98226028]
[1741925490321,0.012163,82212.0,82177.0,0.98226028]
[1741925490521,0.243272,82213.0,82204.0,0.243295]
[1741925490522,0.312163,82210.0,82204.0,0.243295]
[1741925490698,0.31220401,82210.0,82205.0,0.13612]
[1741925490901,0.31220401,82210.0,82206.0,0.01231057]
[1741925491104,0.55548501,82210.0,82206.0,0.01231057]
[1741925491301,0.30004101,82210.0,82206.0,0.26776557]
[1741925491533,0.0178152,82210.0,82207.0,0.243286]
[1741925491711,0.0178152,82210.0,82208.0,0.255446]
[1741925491895,0.0178152,82210.0,82209.0,0.01226965]
[1741925492995,0.0299782,82210.0,82205.0,0.13612]
[1741925493201,0.0299782,82210.0,82209.0,0.01226965]
[1741925493404,0.0299782,82210.0,82205.0,0.13612]
[1741925493405,0.012164,82206.0,82205.0,0.13612]
[1741925493882,0.012164,82206.0,82205.0,0.14838965]
[1741925494488,0.255455,82206.0,82205.0,0.14838965]
[1741925494631,0.255446,82209.0,82205.0,0.14838965]
[1741925494835,0.255446,82209.0,82205.0,0.15138965]
[1741925495096,0.012164,82209.0,82205.0,0.39468265]
[1741925495318,0.012164,82209.0,82205.0,0.15438965]
[1741925495508,0.255448,82209.0,82205.0,0.15438965]
[1741925495917,0.255448,82209.0,82205.0,0.15138965]
[1741925496155,0.255448,82209.0,82205.0,0.15338965]
[1741925496356,0.255448,82209.0,82205.0,0.15038965]
[1741925496536,0.2732602,82210.0,82205.0,0.15038965]
[1741925496738,0.0178152,82210.0,82207.0,0.255449]
[1741925497312,0.0178152,82210.0,82208.0,0.01218052]
[1741925497520,0.0178152,82210.0,82208.0,0.25546352]
[1741925497691,0.0178152,82210.0,82208.0,0.01218052]
[1741925498826,4.101e-05,82210.0,82208.0,0.01218052]
[1741925499966,4.101e-05,82210.0,82208.0,0.01418052]
[1741925500764,4.101e-05,82210.0,82208.0,0.25746352]
[1741925501081,4.101e-05,82210.0,82208.0,0.25946352]
[1741925501295,4.101e-05,82210.0,82209.0,0.012164]
[1741925501423,4.101e-05,82210.0,82208.0,0.247283]
[1741925501641,4.101e-05,82210.0,82209.0,0.01218052]
[1741925502049,0.30004101,82210.0,82209.0,0.01218052]
[1741925502819,0.54332201,82210.0,82209.0,0.004]
[1741925503018,0.54332201,82210.0,82209.0,0.01618052]
[1741925503179,0.54332201,82210.0,82209.0,0.004]
[1741925503380,0.54332201,82210.0,82209.0,0.01618052]
[1741925503579,0.54332201,82210.0,82209.0,0.004]
[1741925503929,0.30004101,82210.0,82209.0,0.004]
[1741925504146,0.30004101,82210.0,82209.0,0.01618052]
[1741925504323,0.30004101,82210.0,82209.0,0.004]
[1741925504501,0.30004101,82210.0,82209.0,0.01618052]
[1741925505596,4.101e-05,82210.0,82209.0,0.01618052]
[1741925510869,4.101e-05,82210.0,82209.0,0.004]
[1741925512013,4.101e-05,82210.0,82209.0,0.01618052]
[1741925514237,0.01220401,82210.0,82209.0,0.01618052]
[1741925514433,0.01220401,82210.0,82209.0,0.004]
[1741925514871,0.50183069,82210.0,82209.0,0.004]
[1741925515002,0.39220401,82210.0,82209.0,0.004]
[1741925516144,0.39220401,82210.0,82209.0,0.002]
[1741925516671,0.012165,82198.0,82196.0,0.55557985]
[1741925517083,0.012165,82198.0,82197.0,0.01218008]
[1741925517508,0.255472,82201.0,82197.0,0.01218008]
[1741925517647,0.012164,82205.0,82197.0,0.01218008]
[1741925517847,0.543299,82204.0,82198.0,0.243314]
[1741925518072,0.555463,82204.0,82199.0,0.01224167]
[1741925518282,0.5745248,82204.0,82199.0,0.01224167]
[1741925518463,0.243302,82203.0,82199.0,0.01224167]
[1741925518896,0.243308,82201.0,82199.0,0.01224167]
[1741925519062,0.243311,82199.0,82196.0,0.13608]
[1741925519269,0.243311,82199.0,82197.0,0.01224167]
[1741925519592,0.255476,82199.0,82197.0,0.01224167]
[1741925519951,0.012165,82198.0,82197.0,0.14832167]
[1741925520397,0.012165,82198.0,82197.0,0.13908]
[1741925520763,0.012165,82198.0,82197.0,0.13608]
[1741925520960,0.012165,82198.0,82197.0,0.14008]
[1741925521189,0.012165,82198.0,82197.0,0.15631364]
[1741925521566,0.012165,82198.0,82197.0,0.15231364]
[1741925521767,0.012165,82198.0,82197.0,0.14008]
[1741925521990,0.012165,82198.0,82197.0,0.14408]
[1741925524058,0.012165,82198.0,82197.0,0.14008]
[1741925524213,0.012165,82198.0,82197.0,0.14408]
[1741925524431,0.012165,82198.0,82197.0,0.14008]
[1741925524635,0.012165,82198.0,82197.0,0.14208]
[1741925524816,0.012165,82198.0,82197.0,0.13808]
[1741925525023,0.012165,82198.0,82197.0,0.14108]
[1741925528211,0.012165,82198.0,82197.0,0.1414182]
[1741925532217,0.012165,82198.0,82197.0,0.0053382]
[1741925533777,0.342465,82198.0,82197.0,0.0053382]
[1741925534383,0.342465,82198.0,82197.0,0.0023382]
[1741925534810,0.42971657,82198.0,82197.0,2e-07]
[1741925535918,0.57079657,82198.0,82197.0,2e-07]
[1741925536116,0.255542,82178.0,82177.0,0.0003382]
[1741925536442,0.635542,82178.0,82177.0,0.0003382]
[1741925537094,0.65460843,82178.0,82177.0,0.0003382]
[1741925538445,0.65560843,82178.0,82177.0,0.0003382]
[1741925539849,0.65560843,82178.0,82177.0,0.0023382]
[1741925540048,0.77556932,82178.0,82177.0,0.0023382]
[1741925540449,0.77556932,82178.0,82177.0,0.0003382]
[1741925540677,0.77756932,82178.0,82177.0,0.0003382]
[1741925541454,0.57760843,82178.0,82177.0,0.0003382]
[1741925541841,0.32206643,82178.0,82177.0,0.0003382]
[1741925542396,0.32106643,82178.0,82177.0,0.01084349]
[1741925542539,0.32106643,82178.0,82177.0,0.0003382]
[1741925542739,0.33123443,82178.0,82177.0,0.01084349]
[1741925542969,0.33223443,82178.0,82177.0,0.01084349]
[1741925543375,0.33123443,82178.0,82177.0,0.0003382]
[1741925543579,0.33223443,82178.0,82177.0,0.0003382]
[1741925543900,0.33423443,82178.0,82177.0,0.0003382]
[1741925544097,0.33423443,82178.0,82177.0,0.01084349]
[1741925544344,0.33223443,82178.0,82177.0,0.01084349]
[1741925546007,0.33123443,82178.0,82177.0,0.01084349]
[1741925546366,0.33123443,82178.0,82177.0,0.0003382]
[1741925549155,0.312168,82178.0,82177.0,0.0003382]
[1741925552037,0.33123512,82178.0,82177.0,0.0003382]
[1741925555504,0.39872486,82178.0,82177.0,0.0003382]
[1741925556739,0.40072486,82178.0,82177.0,0.0003382]
[1741925557131,0.39972486,82178.0,82177.0,0.0003382]
[1741925557536,0.40072486,82178.0,82177.0,0.0003382]
[1741925558036,0.40172486,82178.0,82177.0,0.0003382]
[1741925558206,0.03423512,82178.0,82177.0,0.0003382]
[1741925560334,0.33423512,82178.0,82177.0,0.0003382]
[1741925563654,0.315168,82178.0,82177.0,0.0003382]
[1741925564996,0.392168,82178.0,82177.0,0.0003382]
[1741925565762,0.390168,82178.0,82177.0,0.0003382]
[1741925566300,0.4293453,82178.0,82177.0,0.0003382]
[1741925566973,0.45141386,82178.0,82177.0,0.0003382]
[1741925567348,0.45541386,82178.0,82177.0,0.0003382]
[1741925567547,0.45141386,82178.0,82177.0,0.0003382]
[1741925567942,0.45441386,82178.0,82177.0,0.0003382]
[1741925571520,0.33823656,82178.0,82177.0,0.0003382]
[1741925572269,0.33523656,82178.0,82177.0,0.0003382]
[1741925572473,0.03523656,82178.0,82177.0,0.0003382]
[1741925572679,0.33823656,82178.0,82177.0,0.0003382]
[1741925573040,0.33423656,82178.0,82177.0,0.0003382]
[1741925573249,0.33323656,82178.0,82177.0,0.0003382]